fUST/lending_fUST_20250709
["ID","MTS","AMOUNT","RATE_DAILY","PERIOD"]
[370476746,1752036642503,-460.0,0.00019726,2]
[370476747,1752036642512,-460.0,0.00019726,2]
[370476748,1752036642522,-465.33,0.00019726,2]
[370476749,1752036642532,-1242.6,0.00019726,2]
[370476750,1752036642541,-460.0,0.00019726,2]
[370476751,1752036642551,-870.17,0.00019726,2]
[370476752,1752036642561,-460.0,0.00019726,2]
[370476753,1752036642570,-607.64,0.00019726,2]
[370476754,1752036642580,-460.0,0.00019726,2]
[370476755,1752036642590,-460.0,0.00019726,2]
[370476756,1752036642599,-460.0,0.00019726,2]
[370476757,1752036642612,-460.0,0.00019726,2]
[370476758,1752036642622,-460.0,0.00019726,2]
[370476759,1752036642631,-460.0,0.00019726,2]
[370476760,1752036642641,-683.01,0.00019726,2]
[370476762,1752036642651,-460.0,0.00019726,2]
[370476763,1752036642661,-460.0,0.00019726,2]
[370476764,1752036642670,-467.95227676,0.00019726,2]
[370476765,1752036642680,-1166.18,0.00019726,2]
[370476766,1752036642691,-507.42164476,0.00019726,2]
[370476767,1752036642703,-460.0,0.00019726,2]
[370476768,1752036642712,-460.0,0.00019726,2]
[370476769,1752036642722,-460.0,0.00019726,2]
[370476770,1752036642731,-460.0,0.00019726,2]
[370476773,1752036642741,-1646.39,0.00019726,2]
[370476775,1752036642750,-460.0,0.00019726,2]
[370476777,1752036642760,-460.0,0.00019726,2]
[370476779,1752036642769,-460.0,0.00019726,2]
[370476781,1752036642779,-460.0,0.00019726,2]
[370476782,1752036642788,-1083.52,0.00019726,2]
[370476784,1752036642923,-460.0,0.00019726,2]
[370476785,1752036642934,-460.0,0.00019726,2]
[370476786,1752036642943,-460.0,0.00019726,2]
[370476787,1752036642953,-468.92089986,0.00019726,2]
[370476788,1752036642962,-460.0,0.00019726,2]
[370476789,1752036642972,-460.0,0.00019726,2]
[370476790,1752036642982,-460.0,0.00019726,2]
[370476791,1752036642992,-722.52,0.00019726,2]
[370476792,1752036643002,-468.77464405,0.00019726,2]
[370476793,1752036643012,-460.0,0.00019726,2]
[370476794,1752036643022,-1253.21,0.00019726,2]
[370476795,1752036643032,-460.0,0.00019726,2]
[370476797,1752036643042,-460.0,0.00019726,2]
[370476798,1752036643052,-460.0,0.00019726,2]
[370476800,1752036643063,-695.87,0.00019726,2]
[370476802,1752036643074,-460.0,0.00019726,2]
[370476804,1752036643084,-460.0,0.00019726,2]
[370476806,1752036643094,-460.0,0.00019726,2]
[370476807,1752036643104,-460.0,0.00019726,2]
[370476808,1752036643117,-460.0,0.00019726,2]
[370476809,1752036643127,-460.0,0.00019726,2]
[370476810,1752036643137,-460.0,0.00019726,2]
[370476811,1752036643147,-460.0,0.00019726,2]
[370476813,1752036643157,-460.0,0.00019726,2]
[370476814,1752036643166,-460.0,0.00019726,2]
[370476816,1752036643176,-956.66,0.00019726,2]
[370476818,1752036643185,-460.0,0.00019726,2]
[370476820,1752036643195,-460.0,0.00019726,2]
[370476822,1752036643205,-656.55,0.00019726,2]
[370476823,1752036643215,-1984.95,0.00019726,2]
[370476824,1752036643224,-232.04314632,0.00019726,2]
[370476825,1752036643234,-460.0,0.00019726,2]
[370476826,1752036643244,-460.0,0.00019726,2]
[370476828,1752036643253,-460.0,0.00019726,2]
[370476829,1752036643263,-460.0,0.00019726,2]
[370476830,1752036643272,-377.58487684,0.00019726,2]
[370476831,1752036643282,-460.0,0.00019726,2]
[370476832,1752036643292,-460.0,0.00019726,2]
[370476833,1752036643301,-460.0,0.00019726,2]
[370476834,1752036643311,-460.0,0.00019726,2]
[370476835,1752036643320,-694.39,0.00019726,2]
[370476836,1752036643330,-460.0,0.00019726,2]
[370476837,1752036643339,-460.0,0.00019726,2]
[370476838,1752036643349,-460.0,0.00019726,2]
[370476839,1752036643359,-540.02,0.00019726,2]
[370476840,1752036643370,-463.09636515,0.00019726,2]
[370476841,1752036643380,-460.0,0.00019726,2]
[370476842,1752036643390,-460.0,0.00019726,2]
[370476844,1752036643400,-175.40834771,0.00019726,2]
[370476846,1752036643409,-715.48,0.00019726,2]
[370476848,1752036643419,-460.0,0.00019726,2]
[370476850,1752036643429,-588.98,0.00019726,2]
[370476852,1752036643438,-500.0,0.00019781,2]
[370476854,1752036643448,-151.0,0.00019781,2]
[370476855,1752036643458,-151.0,0.000198,2]
[370476858,1752036643468,-516.28207302,0.00019808,2]
[370476859,1752036643478,-500.0,0.00019811,2]
[370476862,1752036643488,-503.5289748,0.00019811,2]
[370476865,1752036643498,-760.07289997,0.00019827,2]
[370476867,1752036643507,-500.0,0.00019835,2]
[370476869,1752036643517,-1322.89923604,0.00019853,2]
[370476871,1752036643527,-157.75257912,0.00019863,2]
[370476873,1752036643536,-500.0,0.00019883,2]
[370476874,1752036643546,-151.0,0.00019891,2]
[370476875,1752036643556,-151.0,0.00019891,2]
[370476876,1752036643565,-151.0,0.00019891,2]
[370476877,1752036643575,-151.0,0.00019891,2]
[370476878,1752036643584,-151.0,0.00019891,2]
[370476879,1752036643594,-151.0,0.00019891,2]
[370476880,1752036643604,-151.60978335,0.00019891,2]
[370476881,1752036643619,-151.0,0.00019891,2]
[370476882,1752036643629,-3914.82678629,0.000199,2]
[370476883,1752036643639,-151.0,0.00019918,2]
[370476884,1752036643650,-151.0,0.00019918,2]
[370476885,1752036643660,-151.0,0.00019918,2]
[370476886,1752036643670,-198.54104326,0.00019918,2]
[370476887,1752036643680,-247.62234683,0.00019918,2]
[370476888,1752036643691,-151.0,0.00019918,2]
[370476889,1752036643701,-151.0,0.00019918,2]
[370476890,1752036643713,-199.56185223,0.00019946,2]
[370476891,1752036643722,-151.0,0.00019946,2]
[370476892,1752036643732,-151.0,0.00019946,2]
[370476893,1752036643744,-281.90042341,0.00019946,2]
[370476894,1752036643754,-256.78734587,0.00019946,2]
[370476895,1752036643764,-233.80356487,0.00019955,2]
[370476896,1752036643774,-198.54547979,0.00019973,2]
[370476897,1752036643784,-500.0,0.00019973,2]
[370476898,1752036643795,-500.0,0.00019973,2]
[370476899,1752036643806,-500.0,0.00019973,2]
[370476900,1752036643816,-500.0,0.00019973,2]
[370476901,1752036643827,-500.0,0.00019973,2]
[370476902,1752036643836,-500.0,0.00019973,2]
[370476903,1752036643846,-501.29073386,0.00019973,2]
[370476904,1752036643856,-500.0,0.00019973,2]
[370476905,1752036643865,-500.61239595,0.00019973,2]
[370476906,1752036643877,-491.97369834,0.00019973,2]
[370476907,1752036643887,-595.57927025,0.00019973,2]
[370476908,1752036643897,-500.0,0.00019973,2]
[370476909,1752036643907,-500.0,0.00019973,2]
[370476910,1752036643917,-501.02388313,0.00019973,2]
[370476911,1752036643928,-500.0,0.00019973,2]
[370476912,1752036643938,-500.0,0.00019973,2]
[370476913,1752036643947,-260.89677141,0.00019973,2]
[370476914,1752036643957,-198.48264762,0.00019973,2]
[370476915,1752036643969,-500.0,0.00019978,2]
[370476916,1752036643979,-619.35351764,0.0002,4]
[370476917,1752036643990,-100139.0,0.0002,2]
[370476918,1752036644000,-460.0,0.0002,2]
[370476919,1752036644009,-460.0,0.0002,2]
[370476920,1752036644019,-460.0,0.0002,2]
[370476921,1752036644029,-460.0,0.0002,2]
[370476922,1752036644038,-460.0,0.0002,2]
[370476923,1752036644047,-460.0,0.0002,2]
[370476924,1752036644057,-460.0,0.0002,2]
[370476925,1752036644067,-460.0,0.0002,2]
[370476926,1752036644076,-460.0,0.0002,2]
[370476927,1752036644085,-460.0,0.0002,2]
[370476928,1752036644095,-460.0,0.0002,2]
[370476929,1752036644106,-460.0,0.0002,2]
[370476930,1752036644116,-558.65274081,0.0002,2]
[370476931,1752036644126,-460.0,0.0002,2]
[370476932,1752036644137,-460.0,0.0002,2]
[370476933,1752036644147,-474.5353023,0.0002,2]
[370476934,1752036644156,-460.0,0.0002,2]
[370476935,1752036644167,-266.11271616,0.0002,2]
[370476936,1752036644178,-530.61135614,0.0002,2]
[370476937,1752036644187,-469.94389054,0.0002,2]
[370476938,1752036644197,-460.0,0.0002,2]
[370476939,1752036644208,-2522.95,0.0002,2]
[370476940,1752036644217,-460.0,0.0002,2]
[370476941,1752036644228,-1860.36,0.0002,2]
[370476942,1752036644239,-460.0,0.0002,2]
[370476943,1752036644249,-469.31905196,0.0002,2]
[370476944,1752036644258,-460.0,0.0002,2]
[370476945,1752036644270,-465.33,0.0002,2]
[370476946,1752036644279,-1242.6,0.0002,2]
[370476947,1752036644289,-460.0,0.0002,2]
[370476948,1752036644300,-870.17,0.0002,2]
[370476949,1752036644311,-460.0,0.0002,2]
[370476950,1752036644322,-607.64,0.0002,2]
[370476951,1752036644331,-460.0,0.0002,2]
[370476952,1752036644342,-460.0,0.0002,2]
[370476953,1752036644351,-460.0,0.0002,2]
[370476954,1752036644361,-460.0,0.0002,2]
[370476955,1752036644371,-169.08492236,0.0002,2]
[370476956,1752036644381,-460.0,0.0002,2]
[370476957,1752036644391,-683.01,0.0002,2]
[370476958,1752036644401,-460.0,0.0002,2]
[370476959,1752036644411,-300.0,0.0002,2]
[370476960,1752036644421,-513.41487301,0.0002,2]
[370476961,1752036644430,-1166.18,0.0002,2]
[370476962,1752036644440,-460.0,0.0002,2]
[370476963,1752036644451,-460.0,0.0002,2]
[370476964,1752036644460,-1646.39,0.0002,2]
[370476965,1752036644470,-460.0,0.0002,2]
[370476966,1752036644479,-460.0,0.0002,2]
[370476967,1752036644490,-460.0,0.0002,2]
[370476968,1752036644499,-460.0,0.0002,2]
[370476969,1752036644509,-1083.52,0.0002,2]
[370476970,1752036644518,-460.0,0.0002,2]
[370476971,1752036644528,-460.0,0.0002,2]
[370476972,1752036644537,-460.0,0.0002,2]
[370476973,1752036644547,-460.0,0.0002,2]
[370476974,1752036644557,-460.0,0.0002,2]
[370476975,1752036644566,-722.52,0.0002,2]
[370476976,1752036644575,-460.0,0.0002,2]
[370476977,1752036644585,-1253.21,0.0002,2]
[370476978,1752036644594,-460.0,0.0002,2]
[370476979,1752036644603,-460.0,0.0002,2]
[370476980,1752036644616,-695.87,0.0002,2]
[370476981,1752036644626,-520.02136783,0.0002,2]
[370476982,1752036644635,-297.89662517,0.0002,2]
[370476983,1752036644645,-460.0,0.0002,2]
[370476984,1752036644655,-460.0,0.0002,2]
[370476985,1752036644665,-460.0,0.0002,2]
[370476986,1752036644674,-246.46944018,0.0002,2]
[370476987,1752036644685,-460.0,0.0002,2]
[370476988,1752036644695,-460.0,0.0002,2]
[370476989,1752036644705,-460.0,0.0002,2]
[370476990,1752036644715,-460.0,0.0002,2]
[370476991,1752036644725,-956.66,0.0002,2]
[370476992,1752036644734,-563.78977974,0.0002,2]
[370476993,1752036644745,-460.0,0.0002,2]
[370476994,1752036644755,-656.55,0.0002,2]
[370476995,1752036644764,-1984.95,0.0002,2]
[370476996,1752036644775,-460.0,0.0002,2]
[370476997,1752036644785,-460.0,0.0002,2]
[370476998,1752036644794,-460.0,0.0002,2]
[370476999,1752036644804,-460.0,0.0002,2]
[370477000,1752036644814,-460.0,0.0002,2]
[370477001,1752036644824,-460.0,0.0002,2]
[370477002,1752036644834,-694.39,0.0002,2]
[370477003,1752036644844,-460.0,0.0002,2]
[370477004,1752036644854,-460.0,0.0002,2]
[370477005,1752036644864,-151.41407807,0.0002,2]
[370477006,1752036644875,-460.0,0.0002,2]
[370477007,1752036644885,-540.02,0.0002,2]
[370477008,1752036644895,-475.08973069,0.0002,2]
[370477009,1752036644905,-460.0,0.0002,2]
[370477010,1752036644915,-715.48,0.0002,2]
[370477011,1752036644925,-460.0,0.0002,2]
[370477012,1752036644935,-588.98,0.0002,2]
[370477013,1752036644945,-500.0,0.00020073,2]
[370477014,1752036644954,-215.27775528,0.00020095,2]
[370477015,1752036644964,-160.0,0.00020095,2]
[370477016,1752036644974,-160.0,0.00020095,2]
[370477017,1752036644984,-160.0,0.00020095,2]
[370477018,1752036644994,-837.99933892,0.00020095,2]
[370477019,1752036645004,-214.14293035,0.00020095,2]
[370477020,1752036645013,-12589.12013084,0.00020095,2]
[370477021,1752036645023,-160.0,0.00020095,2]
[370477022,1752036645032,-230.53906051,0.00020095,2]
[370477023,1752036645041,-848.55005627,0.00020095,2]
[370477024,1752036645050,-160.0,0.00020095,2]
[370477025,1752036645060,-160.0,0.00020095,2]
[370477026,1752036645070,-151.0,0.000201,3]
[370477027,1752036645080,-3914.82678616,0.00020107,2]
[370477028,1752036645089,-500.0,0.00020168,2]
[370477029,1752036645098,-426.190354,0.00020187,2]
[370477030,1752036645108,-500.0,0.00020263,2]
[370477031,1752036645117,-760.07289997,0.00020271,2]
[370477032,1752036645127,-460.0,0.00020273,2]
[370477033,1752036645137,-460.0,0.00020273,2]
[370477034,1752036645147,-460.0,0.00020273,2]
[370477035,1752036645156,-460.0,0.00020273,2]
[370477036,1752036645167,-460.0,0.00020273,2]
[370477037,1752036645177,-460.0,0.00020273,2]
[370477038,1752036645187,-315.33,0.00020273,2]
[370477039,1752036645196,-460.0,0.00020273,2]
[370477040,1752036645205,-2522.95,0.00020273,2]
[370477041,1752036645214,-460.0,0.00020273,2]
[370477042,1752036645224,-1860.36,0.00020273,2]
[370477043,1752036645235,-460.0,0.00020273,2]
[370477044,1752036645245,-465.33,0.00020273,2]
[370477045,1752036645255,-1242.6,0.00020273,2]
[370477046,1752036645266,-460.0,0.00020273,2]
[370477047,1752036645278,-870.17,0.00020273,2]
[370477048,1752036645289,-460.0,0.00020273,2]
[370477049,1752036645301,-607.64,0.00020273,2]
[370477050,1752036645311,-460.0,0.00020273,2]
[370477051,1752036645322,-460.0,0.00020273,2]
[370477052,1752036645331,-460.0,0.00020273,2]
[370477053,1752036645342,-460.0,0.00020273,2]
[370477054,1752036645352,-683.01,0.00020273,2]
[370477055,1752036645361,-460.0,0.00020273,2]
[370477056,1752036645371,-1166.18,0.00020273,2]
[370477057,1752036645421,-264.43,0.00020273,2]
[370477058,1752036645434,-1646.39,0.00020273,2]
[370477059,1752036645444,-460.0,0.00020273,2]
[370477060,1752036645454,-460.0,0.00020273,2]
[370477061,1752036645464,-460.0,0.00020273,2]
[370477062,1752036645473,-1083.52,0.00020273,2]
[370477063,1752036645483,-460.0,0.00020273,2]
[370477064,1752036645492,-460.0,0.00020273,2]
[370477065,1752036645502,-460.0,0.00020273,2]
[370477066,1752036645512,-460.0,0.00020273,2]
[370477067,1752036645523,-722.52,0.00020273,2]
[370477068,1752036645534,-460.0,0.00020273,2]
[370477069,1752036645544,-1253.21,0.00020273,2]
[370477070,1752036645554,-460.0,0.00020273,2]
[370477071,1752036645564,-460.0,0.00020273,2]
[370477072,1752036645576,-695.87,0.00020273,2]
[370477073,1752036645585,-473.07851239,0.00020273,2]
[370477074,1752036645595,-460.0,0.00020273,2]
[370477075,1752036645604,-460.0,0.00020273,2]
[370477076,1752036645618,-460.0,0.00020273,2]
[370477077,1752036645628,-460.0,0.00020273,2]
[370477078,1752036645638,-460.0,0.00020273,2]
[370477080,1752036645647,-956.66,0.00020273,2]
[370477081,1752036645658,-460.0,0.00020273,2]
[370477082,1752036645667,-656.55,0.00020273,2]
[370477083,1752036645677,-1984.95,0.00020273,2]
[370477084,1752036645687,-460.0,0.00020273,2]
[370477085,1752036645698,-460.0,0.00020273,2]
[370477086,1752036645707,-460.0,0.00020273,2]
[370477087,1752036645717,-460.0,0.00020273,2]
[370477088,1752036645727,-460.0,0.00020273,2]
[370477089,1752036645736,-460.0,0.00020273,2]
[370477090,1752036645746,-694.39,0.00020273,2]
[370477091,1752036645755,-460.0,0.00020273,2]
[370477092,1752036645765,-460.0,0.00020273,2]
[370477093,1752036645776,-540.02,0.00020273,2]
[370477094,1752036645785,-715.48,0.00020273,2]
[370477095,1752036645797,-460.0,0.00020273,2]
[370477096,1752036645807,-460.0,0.00020273,2]
[370477097,1752036645816,-151.0,0.000203,4]
[370477098,1752036645826,-3914.82678616,0.00020314,3]
[370477099,1752036645835,-500.0,0.00020359,2]
[370477100,1752036645844,-1000.0,0.00020359,2]
[370477101,1752036645854,-760.07289997,0.00020373,2]
[370477102,1752036645863,-500.0,0.00020454,2]
[370477103,1752036645872,-1322.89923604,0.00020454,2]
[370477104,1752036645882,-9024.00257195,0.000205,2]
[370477105,1752036645892,-428.6820723,0.00020521,2]
[370477106,1752036645902,-728.6336071,0.00020521,2]
[370477107,1752036645913,-505.96527619,0.00020521,2]
[370477108,1752036645923,-1000.0,0.00020521,2]
[370477109,1752036645933,-1004.72484411,0.00020521,2]
[370477110,1752036645942,-1000.0,0.00020521,2]
[370477111,1752036645952,-1000.0,0.00020521,2]
[370477112,1752036645961,-1001.49912669,0.00020521,2]
[370477113,1752036645972,-1008.20759223,0.00020521,2]
[370477114,1752036645983,-1000.91367484,0.00020521,2]
[370477115,1752036645992,-1000.0,0.00020521,2]
[370477116,1752036646002,-1000.0,0.00020521,2]
[370477117,1752036646014,-501.51349977,0.00020521,2]
[370477118,1752036646024,-3914.82678616,0.00020521,3]
[370477119,1752036646034,-460.0,0.00020547,2]
[370477121,1752036646043,-460.0,0.00020547,2]
[370477123,1752036646053,-460.0,0.00020547,2]
[370477125,1752036646063,-460.0,0.00020547,2]
[370477127,1752036646073,-460.0,0.00020547,2]
[370477129,1752036646082,-460.0,0.00020547,2]
[370477131,1752036646092,-2522.95,0.00020547,2]
[370477133,1752036646102,-460.0,0.00020547,2]
[370477136,1752036646112,-1860.36,0.00020547,2]
[370477137,1752036646121,-460.0,0.00020547,2]
[370477139,1752036646130,-465.33,0.00020547,2]
[370477141,1752036646139,-1242.6,0.00020547,2]
[370477143,1752036646148,-460.0,0.00020547,2]
[370477145,1752036646158,-870.17,0.00020547,2]
[370477147,1752036646168,-460.0,0.00020547,2]
[370477149,1752036646179,-607.64,0.00020547,2]
[370477151,1752036646190,-460.0,0.00020547,2]
[370477153,1752036646201,-460.0,0.00020547,2]
[370477154,1752036646211,-340.94,0.00020547,2]
[370477156,1752036646221,-460.0,0.00020547,2]
[370477158,1752036646231,-683.01,0.00020547,2]
[370477160,1752036646242,-460.0,0.00020547,2]
[370477161,1752036646254,-1166.18,0.00020547,2]
[370477162,1752036646263,-1646.39,0.00020547,2]
[370477163,1752036646273,-460.0,0.00020547,2]
[370477164,1752036646283,-460.0,0.00020547,2]
[370477165,1752036646293,-460.0,0.00020547,2]
[370477166,1752036646303,-1083.52,0.00020547,2]
[370477167,1752036646313,-471.48209091,0.00020547,2]
[370477168,1752036646322,-722.52,0.00020547,2]
[370477169,1752036646332,-608.49477014,0.00020547,2]
[370477170,1752036646341,-1253.21,0.00020547,2]
[370477171,1752036646351,-460.0,0.00020547,2]
[370477172,1752036646360,-359.65,0.00020547,2]
[370477173,1752036646370,-695.87,0.00020547,2]
[370477174,1752036646379,-460.0,0.00020547,2]
[370477175,1752036646388,-460.0,0.00020547,2]
[370477176,1752036646398,-460.0,0.00020547,2]
[370477177,1752036646408,-460.0,0.00020547,2]
[370477178,1752036646418,-956.66,0.00020547,2]
[370477179,1752036646428,-460.0,0.00020547,2]
[370477180,1752036646438,-656.55,0.00020547,2]
[370477181,1752036646447,-1984.95,0.00020547,2]
[370477182,1752036646457,-460.0,0.00020547,2]
[370477183,1752036646466,-249.66,0.00020547,2]
[370477184,1752036646475,-460.0,0.00020547,2]
[370477185,1752036646485,-499.27125912,0.00020547,2]
[370477186,1752036646494,-460.0,0.00020547,2]
[370477187,1752036646503,-395.85884626,0.00020547,2]
[370477188,1752036646513,-694.39,0.00020547,2]
[370477189,1752036646522,-281.7,0.00020547,2]
[370477190,1752036646532,-540.02,0.00020547,2]
[370477191,1752036646542,-715.48,0.00020547,2]
[370477192,1752036646551,-460.0,0.00020547,2]
[370477193,1752036646561,-488.12360242,0.00020547,2]
[370477194,1752036646571,-857.3641446,0.00020548,2]
[370477195,1752036646581,-428.6820723,0.00020548,2]
[370477196,1752036646590,-500.0,0.00020549,2]
[370477197,1752036646601,-4972.17,0.000206,2]
[370477198,1752036646615,-151.0,0.000206,3]
[370477199,1752036646627,-151.0,0.000206,3]
[370477200,1752036646637,-500.0,0.00020644,2]
[370477201,1752036646646,-160.0,0.00020689,3]
[370477202,1752036646656,-12589.12013084,0.00020689,3]
[370477203,1752036646666,-848.55005627,0.00020689,3]
[370477204,1752036646675,-784.28,0.00020689,3]
[370477205,1752036646685,-392.14,0.00020689,3]
[370477206,1752036646695,-214.14293035,0.00020689,3]
[370477207,1752036646705,-207.4,0.0002072,2]
[370477208,1752036646716,-300.0,0.0002072,2]
[370477209,1752036646726,-690.642,0.0002072,2]
[370477210,1752036646735,-300.0,0.0002072,2]
[370477211,1752036646745,-300.0,0.0002072,2]
[370477212,1752036646754,-225.97288028,0.0002072,2]
[370477213,1752036646764,-300.0,0.0002072,2]
[370477214,1752036646774,-300.0,0.0002072,2]
[370477215,1752036646784,-300.0,0.0002072,2]
[370477216,1752036646793,-300.0,0.0002072,2]
[370477217,1752036646803,-300.0,0.0002072,2]
[370477218,1752036646813,-300.0,0.0002072,2]
[370477219,1752036646823,-300.0,0.0002072,2]
[370477220,1752036646833,-300.0,0.0002072,2]
[370477221,1752036646843,-300.0,0.0002072,2]
[370477222,1752036646853,-300.0,0.0002072,2]
[370477223,1752036646863,-300.0,0.0002072,2]
[370477224,1752036646872,-300.0,0.0002072,2]
[370477225,1752036646882,-300.0,0.0002072,2]
[370477226,1752036646892,-151.0,0.0002072,2]
[370477227,1752036646904,-216.7649232,0.0002072,2]
[370477228,1752036646914,-3914.82678616,0.00020728,3]
[370477229,1752036646924,-500.0,0.00020739,2]
[370477230,1752036646934,-760.07290005,0.00020749,2]
[370477231,1752036646943,-1136.568,0.0002076,2]
[370477232,1752036646953,-716.195754,0.00020775,2]
[370477233,1752036646963,-151.0,0.000208,3]
[370477234,1752036646973,-1803.46,0.0002082,3]
[370477235,1752036646982,-460.0,0.00020821,2]
[370477236,1752036646992,-460.0,0.00020821,2]
[370477237,1752036647002,-460.0,0.00020821,2]
[370477238,1752036647011,-460.0,0.00020821,2]
[370477239,1752036647021,-340.16458605,0.00020821,2]
[370477240,1752036647030,-2522.95,0.00020821,2]
[370477241,1752036647040,-460.0,0.00020821,2]
[370477242,1752036647050,-1860.36,0.00020821,2]
[370477243,1752036647060,-460.0,0.00020821,2]
[370477244,1752036647070,-465.33,0.00020821,2]
[370477245,1752036647079,-1242.6,0.00020821,2]
[370477246,1752036647089,-460.0,0.00020821,2]
[370477247,1752036647099,-870.17,0.00020821,2]
[370477248,1752036647109,-460.0,0.00020821,2]
[370477249,1752036647118,-607.64,0.00020821,2]
[370477250,1752036647128,-460.0,0.00020821,2]
[370477251,1752036647138,-460.0,0.00020821,2]
[370477252,1752036647148,-460.0,0.00020821,2]
[370477253,1752036647158,-683.01,0.00020821,2]
[370477254,1752036647169,-460.0,0.00020821,2]
[370477255,1752036647179,-1166.18,0.00020821,2]
[370477256,1752036647188,-1646.39,0.00020821,2]
[370477257,1752036647199,-460.0,0.00020821,2]
[370477258,1752036647208,-460.0,0.00020821,2]
[370477259,1752036647218,-460.0,0.00020821,2]
[370477260,1752036647228,-1083.52,0.00020821,2]
[370477261,1752036647237,-722.52,0.00020821,2]
[370477262,1752036647247,-1253.21,0.00020821,2]
[370477263,1752036647257,-460.0,0.00020821,2]
[370477264,1752036647266,-695.87,0.00020821,2]
[370477265,1752036647276,-417.34,0.00020821,2]
[370477266,1752036647285,-516.34907766,0.00020821,2]
[370477267,1752036647296,-460.0,0.00020821,2]
[370477268,1752036647305,-460.0,0.00020821,2]
[370477269,1752036647315,-956.66,0.00020821,2]
[370477270,1752036647324,-460.0,0.00020821,2]
[370477271,1752036647334,-656.55,0.00020821,2]
[370477272,1752036647344,-1984.95,0.00020821,2]
[370477273,1752036647353,-460.0,0.00020821,2]
[370477274,1752036647363,-460.0,0.00020821,2]
[370477275,1752036647372,-460.0,0.00020821,2]
[370477276,1752036647382,-694.39,0.00020821,2]
[370477277,1752036647393,-540.02,0.00020821,2]
[370477278,1752036647402,-460.0,0.00020821,2]
[370477279,1752036647412,-715.48,0.00020821,2]
[370477280,1752036647422,-742.6949969,0.0002083,2]
[370477281,1752036647431,-233.80356487,0.00020833,2]
[370477282,1752036647441,-500.0,0.00020834,2]
[370477283,1752036647450,-770.17471178,0.00020885,2]
[370477284,1752036647459,-420.0,0.00020898,2]
[370477285,1752036647469,-151.0,0.000209,3]
[370477286,1752036647478,-1500.0,0.00020907,2]
[370477287,1752036647488,-500.0,0.00020929,2]
[370477288,1752036647498,-3914.82678616,0.00020934,4]
[370477289,1752036647507,-798.67117612,0.0002094,2]
[370477290,1752036647517,-960.99548709,0.00020995,2]
[370477291,1752036647526,-323.67784344,0.00020998,2]
[370477292,1752036647536,-19274.36019267,0.00021,2]
[370477293,1752036647545,-542991.5436364,0.00021023,4]
[370477294,1752036647675,-401.42757738,0.00021023,4]
[370477295,1752036647688,-291.300155,0.00021023,4]
[370477296,1752036647711,-25000.0,0.0002072,2]
[370477297,1752036647720,-28221.26685473,0.00021023,4]
[370477298,1752036647731,-1033.58533371,0.00021023,4]
[370477299,1752036647742,-1000.9999859,0.00021023,4]
[370477300,1752036647753,-4424.23979782,0.00021023,4]
[370477301,1752036647765,-364.52002253,0.00021023,4]